fUSD/lending_fUSD_20260622
["ID","MTS","AMOUNT","RATE_DAILY","PERIOD"]
[426035267,1782126650000,-200.0,0.00026867,2]
[426035266,1782126650000,-200.0,0.00026867,2]
[426035282,1782126650000,-500.0,0.00026867,2]
[426035269,1782126650000,-200.0,0.00026867,2]
[426035300,1782126650000,-300.0,0.000269,9]
[426035301,1782126650000,-2497.4748,0.00026961,2]
[426035297,1782126650000,-200.0,0.00026867,2]
[426035326,1782126650000,-16575.22346195,0.00027295,2]
[426035327,1782126650000,-280.03725111,0.00027296,2]
[426035325,1782126650000,-803.53,0.00027242,7]
[426035329,1782126650000,-316.0,0.000273,2]
[426035330,1782126650000,-1087379.27466165,0.00027328,2]
[426035322,1782126650000,-188.39780811,0.0002715,5]
[426035320,1782126650000,-537.16622831,0.00027123,7]
[426035321,1782126650000,-1463.66,0.00027144,2]
[426035323,1782126650000,-200.0,0.00027177,2]
[426035324,1782126650000,-50638.63297689,0.000272,2]
[426035319,1782126650000,-449.44997712,0.00027123,7]
[426035318,1782126650000,-1360.0,0.00027051,2]
[426035316,1782126650000,-3559.0,0.00027051,2]
[426035317,1782126650000,-383.0,0.00027051,2]
[426035328,1782126650000,-1000.0,0.000273,2]
[426035315,1782126650000,-150.0,0.00027051,2]
[426035314,1782126650000,-482.43,0.00027049,2]
[426035298,1782126650000,-200.0,0.00026867,2]
[426035299,1782126650000,-182.0,0.00026867,2]
[426035302,1782126650000,-644.33,0.0002697,2]
[426035307,1782126650000,-530.0,0.00027,2]
[426035306,1782126650000,-1056.37288543,0.00027,2]
[426035303,1782126650000,-7000.0,0.00027,5]
[426035310,1782126650000,-152.0,0.00027023,5]
[426035305,1782126650000,-67750.02891583,0.00027,2]
[426035313,1782126650000,-486.604115,0.00027038,2]
[426035309,1782126650000,-200.0,0.00027012,2]
[426035304,1782126650000,-250.0,0.00027,2]
[426035312,1782126650000,-694.0,0.0002703,2]
[426035311,1782126650000,-941.0,0.0002703,2]
[426035308,1782126650000,-28183.41438607,0.00027,2]
[426035332,1782126651000,-575.49160538,0.00016438,2]
[426035333,1782126651000,-500.0,0.00016438,2]
[426035334,1782126651000,-500.0,0.00016438,2]
[426035341,1782126651000,-500.0,0.00016438,2]
[426035336,1782126651000,-500.0,0.00016438,2]
[426035340,1782126651000,-500.0,0.00016438,2]
[426035335,1782126651000,-500.0,0.00016438,2]
[426035337,1782126651000,-500.0,0.00016438,2]
[426035338,1782126651000,-500.0,0.00016438,2]
[426035339,1782126651000,-500.0,0.00016438,2]
[426035331,1782126651000,-500.0,0.00016438,2]
[426035343,1782126651000,-500.0,0.00016438,2]
[426035342,1782126651000,-500.0,0.00016438,2]
[426035344,1782126651000,-500.0,0.00016438,2]
[426035345,1782126651000,-500.0,0.00016438,2]
[426035347,1782126651000,-500.0,0.00016438,2]
[426035353,1782126651000,-21033.76732829,0.00027328,2]
[426035352,1782126651000,-500.0,0.00016438,2]
[426035351,1782126651000,-500.0,0.00016438,2]
[426035348,1782126651000,-500.0,0.00016438,2]
[426035350,1782126651000,-500.0,0.00016438,2]
[426035346,1782126651000,-500.0,0.00016438,2]
[426035349,1782126651000,-500.0,0.00016438,2]
[426035357,1782126652000,-260001.24281523,0.00027328,2]
[426035356,1782126652000,-790.0,0.00021639,7]
[426035354,1782126652000,-500.0,0.00013698,2]
[426035355,1782126652000,-218.442,0.00019744,2]
[426035358,1782126915000,511.58,0.00014388,60]
[426035359,1782126916000,511.58,0.00014388,60]
[426035361,1782126916000,511.58,0.00014388,60]
[426035360,1782126916000,511.58,0.00014388,60]
[426035364,1782126917000,511.58,0.00014388,60]
[426035363,1782126917000,511.58,0.00014388,60]
[426035362,1782126917000,511.58,0.00014388,60]
[426035365,1782127126000,313.33396714,0.00011,2]
[426035366,1782127167000,-300.0,0.000116,4]
[426035367,1782127183000,-292.0,0.000116,5]
[426035374,1782127413000,-500.0,0.00028167,120]
[426035369,1782127413000,-167.2896961,0.00028,120]
[426035370,1782127413000,-500.0,0.00028167,120]
[426035371,1782127413000,-500.0,0.00028167,120]
[426035372,1782127413000,-500.0,0.00028167,120]
[426035373,1782127413000,-500.0,0.00028167,120]
[426035378,1782127413000,-500.0,0.00028167,120]
[426035375,1782127413000,-500.0,0.00028167,120]
[426035377,1782127413000,-500.0,0.00028167,120]
[426035379,1782127413000,-500.0,0.00028167,120]
[426035380,1782127413000,-500.0,0.00028167,120]
[426035381,1782127413000,-500.0,0.00028167,120]
[426035382,1782127413000,-500.0,0.00028167,120]
[426035376,1782127413000,-500.0,0.00028167,120]
[426035389,1782127414000,-500.0,0.00028167,120]
[426035388,1782127414000,-500.0,0.00028167,120]
[426035387,1782127414000,-500.0,0.00028167,120]
[426035384,1782127414000,-500.0,0.00028167,120]
[426035385,1782127414000,-500.0,0.00028167,120]
[426035383,1782127414000,-500.0,0.00028167,120]
[426035390,1782127414000,-500.0,0.00028167,120]
[426035386,1782127414000,-500.0,0.00028167,120]
[426035391,1782127414000,-500.0,0.00028167,120]
[426035401,1782127414000,-227.8,0.000299,120]
[426035394,1782127414000,-412.63,0.0002817,120]
[426035393,1782127414000,-235.34589188,0.00028167,120]
[426035396,1782127414000,-323.2077519,0.0002897,120]
[426035395,1782127414000,-227.8,0.000289,120]
[426035397,1782127414000,-325.26335232,0.00029732,120]
[426035398,1782127414000,-1029.95656332,0.00029836,120]
[426035399,1782127414000,-152.33,0.0002987,120]
[426035400,1782127414000,-150.75,0.0002987,120]
[426035392,1782127414000,-500.0,0.00028167,120]
[426035403,1782127415000,-160.0,0.0003,120]
[426035402,1782127415000,-20000.0,0.0003,120]
[426035404,1782127415000,-312.35984206,0.00030136,120]
[426035407,1782127415000,-500.0,0.00030136,120]
[426035405,1782127415000,-500.0,0.00030136,120]
[426035406,1782127415000,-500.0,0.00030136,120]
[426035408,1782127415000,-532.05366712,0.00030136,120]
[426035409,1782127437000,926.96090699,0.00029836,120]
[426035410,1782127500000,834.26481629,0.00029836,120]
[426035411,1782127528000,330.1,0.00011144,2]
[426035412,1782127538000,799.03,0.00011144,2]
[426035413,1782127562000,750.83833466,0.00029836,120]
[426035414,1782127600000,-166.66,0.00011291,2]
[426035415,1782127617000,-500.0,0.0001135,2]
[426035416,1782127619000,-191.97026996,0.0001135,2]
[426035417,1782127624000,675.7545012,0.00029836,120]
[426035420,1782127638000,500.0,0.00027328,120]
[426035419,1782127638000,500.0,0.00027328,120]
[426035418,1782127638000,300.0,0.000114,4]
[426035421,1782127639000,500.0,0.00027328,120]
[426035422,1782127640000,700.0,0.000115,4]
[426035423,1782127654000,-108.02973004,0.0001135,2]
[426035424,1782127672000,-250.0,0.0001141,2]
[426035425,1782127686000,608.17905108,0.00029836,120]
[426035426,1782127707000,-150.0,0.00011463,2]
[426035429,1782127714000,4392.68396714,0.00011146,2]
[426035428,1782127714000,10000.0,0.00011146,2]
[426035427,1782127714000,6942.41603286,0.00011146,2]
[426035431,1782127761000,547.36114597,0.00029836,120]
[426035430,1782127761000,-209.19975,0.00011463,2]
[426035433,1782127815000,-166.66,0.00011528,2]
[426035434,1782127817000,492.62503137,0.00029836,120]
[426035446,1782127831000,-300.0,0.000119,4]
[426035444,1782127831000,-166.66,0.00011766,2]
[426035447,1782127831000,-322.85158625,0.00011918,7]
[426035448,1782127831000,-166.66,0.00012004,2]
[426035442,1782127831000,-1000.0,0.000116,4]
[426035441,1782127831000,-285.05513885,0.00011542,2]
[426035440,1782127831000,-362.15534498,0.00011542,2]
[426035439,1782127831000,-500.0,0.00011542,2]
[426035437,1782127831000,-500.0,0.00011542,2]
[426035438,1782127831000,-500.0,0.00011542,2]
[426035449,1782127831000,-150.0,0.00012054,2]
[426035443,1782127831000,-1400.0,0.000117,4]
[426035445,1782127831000,-1800.0,0.000118,4]
[426035450,1782127831000,-500.0,0.00012055,3]
[426035451,1782127831000,-500.0,0.00012055,3]
[426035460,1782127831000,-238.66474963,0.00012055,3]
[426035461,1782127831000,-500.0,0.00012055,3]
[426035459,1782127831000,-500.0,0.00012055,3]
[426035458,1782127831000,-150.0,0.00012055,3]
[426035463,1782127831000,-500.0,0.00012055,3]
[426035462,1782127831000,-500.0,0.00012055,3]
[426035457,1782127831000,-500.0,0.00012055,3]
[426035452,1782127831000,-500.0,0.00012055,3]
[426035453,1782127831000,-500.0,0.00012055,3]
[426035455,1782127831000,-500.0,0.00012055,3]
[426035454,1782127831000,-150.0,0.00012055,3]
[426035456,1782127831000,-150.0,0.00012055,3]
[426035475,1782127832000,-150.0,0.00012056,2]
[426035491,1782127832000,-150.0,0.00012128,2]
[426035489,1782127832000,-500.0,0.00012069,2]
[426035490,1782127832000,-174.02649023,0.00012069,2]
[426035477,1782127832000,-203.2629346,0.00012056,2]
[426035481,1782127832000,-500.0,0.00012056,2]
[426035480,1782127832000,-500.0,0.00012056,2]
[426035478,1782127832000,-500.0,0.00012056,2]
[426035479,1782127832000,-500.0,0.00012056,2]
[426035476,1782127832000,-150.0,0.00012056,2]
[426035466,1782127832000,-500.0,0.00012055,3]
[426035474,1782127832000,-150.0,0.00012056,2]
[426035472,1782127832000,-266.08258867,0.00012056,2]
[426035471,1782127832000,-382.62798471,0.00012055,3]
[426035469,1782127832000,-500.0,0.00012055,3]
[426035470,1782127832000,-500.0,0.00012055,3]
[426035492,1782127832000,-344.94191362,0.00012128,2]
[426035467,1782127832000,-260.4169221,0.00012055,3]
[426035464,1782127832000,-500.0,0.00012055,3]
[426035468,1782127832000,-500.0,0.00012055,3]
[426035465,1782127832000,-500.0,0.00012055,3]
[426035473,1782127832000,-150.0,0.00012056,2]
[426035493,1782127832000,-500.0,0.00012128,2]
[426035482,1782127832000,-486.49338314,0.00012056,2]
[426035494,1782127832000,-409.66537113,0.00012128,2]
[426035495,1782127832000,-500.0,0.00012128,2]
[426035516,1782127832000,-191.969436,0.00011484,2]
[426035515,1782127832000,-4837.3635618,0.00012249,2]
[426035512,1782127832000,-16575.22346195,0.00012239,2]
[426035513,1782127832000,-166.66,0.00012241,2]
[426035508,1782127832000,-2858.50263333,0.00012229,2]
[426035511,1782127832000,-10286.11020657,0.0001223,2]
[426035514,1782127832000,-8357.24278163,0.00012249,2]
[426035510,1782127832000,-3895.33196994,0.0001223,2]
[426035509,1782127832000,-813.87396831,0.00012229,2]
[426035505,1782127832000,-14181.44217651,0.00012219,2]
[426035507,1782127832000,-13716.72082864,0.00012229,2]
[426035500,1782127832000,-8496.298,0.00012129,2]
[426035502,1782127832000,-2304.6492,0.00012129,2]
[426035498,1782127832000,-363.67498495,0.00012128,2]
[426035503,1782127832000,-2500.0,0.0001213,2]
[426035501,1782127832000,-1000.0,0.00012129,2]
[426035504,1782127832000,-235.63,0.00012173,2]
[426035517,1782127832000,-839.96181697,0.00012249,2]
[426035499,1782127832000,-500.0,0.00012128,2]
[426035497,1782127832000,-334.36942039,0.00012128,2]
[426035496,1782127832000,-180.6713393,0.00012128,2]
[426035506,1782127832000,-837.26431758,0.00012229,2]
[426035523,1782127838000,-448.30419999,0.00012249,2]
[426035522,1782127838000,-256.89281893,0.00012249,2]
[426035524,1782127838000,-1835.45828263,0.00012249,2]
[426035528,1782127838000,-12360.83984589,0.00012269,2]
[426035527,1782127838000,-173.24479151,0.00012268,2]
[426035526,1782127838000,-15290.92056579,0.00012259,2]
[426035525,1782127838000,-1284.30289616,0.00012259,2]
[426035608,1782127840000,-1093.09882512,0.00012329,3]
[426035611,1782127840000,-2170058.02995096,0.00012329,2]
[426035610,1782127840000,-1093.09882512,0.00012329,3]
[426035614,1782127840000,-168.115348,0.0001233,2]
[426035613,1782127840000,-179.39769902,0.00012329,2]
[426035615,1782127840000,-151.0,0.0001233,2]
[426035620,1782127840000,-500.0,0.0001233,2]
[426035621,1782127840000,-500.0,0.0001233,2]
[426035619,1782127840000,-190.526948,0.0001233,2]
[426035617,1782127840000,-190.526948,0.0001233,2]
[426035616,1782127840000,-151.0,0.0001233,2]
[426035623,1782127840000,-190.526948,0.0001233,2]
[426035625,1782127840000,-500.0,0.0001233,2]
[426035609,1782127840000,-1093.09882512,0.00012329,3]
[426035622,1782127840000,-500.0,0.0001233,2]
[426035612,1782127840000,-178.0,0.00012329,2]
[426035618,1782127840000,-190.526948,0.0001233,2]
[426035605,1782127840000,-1093.09882512,0.00012329,3]
[426035624,1782127840000,-500.0,0.0001233,2]
[426035593,1782127840000,-4214.38361606,0.00012269,2]
[426035594,1782127840000,-16575.22346195,0.0001228,2]
[426035596,1782127840000,-16575.22346195,0.000123,2]
[426035598,1782127840000,-16575.22346195,0.0001232,2]
[426035597,1782127840000,-16575.22346195,0.0001231,2]
[426035606,1782127840000,-1093.09882512,0.00012329,3]
[426035601,1782127840000,-1093.09882512,0.00012329,3]
[426035595,1782127840000,-16575.22346195,0.0001229,2]
[426035599,1782127840000,-1093.09882512,0.00012329,3]
[426035602,1782127840000,-1093.09882513,0.00012329,3]
[426035603,1782127840000,-1093.09882512,0.00012329,3]
[426035604,1782127840000,-1093.09882512,0.00012329,3]
[426035607,1782127840000,-1093.09882512,0.00012329,3]
[426035600,1782127840000,-1093.09882512,0.00012329,3]
[426035633,1782127840000,-500.0,0.0001233,2]
[426035626,1782127840000,-500.0,0.0001233,2]
[426035631,1782127840000,-500.0,0.0001233,2]
[426035646,1782127840000,-500.0,0.0001233,2]
[426035647,1782127840000,-500.0,0.0001233,2]
[426035648,1782127840000,-500.0,0.0001233,2]
[426035649,1782127840000,-500.0,0.0001233,2]
[426035652,1782127840000,-500.0,0.0001233,2]
[426035650,1782127840000,-500.0,0.0001233,2]
[426035645,1782127840000,-500.0,0.0001233,2]
[426035656,1782127840000,-500.0,0.0001233,2]
[426035655,1782127840000,-500.0,0.0001233,2]
[426035651,1782127840000,-500.0,0.0001233,2]
[426035654,1782127840000,-500.0,0.0001233,2]
[426035657,1782127840000,-500.0,0.0001233,2]
[426035660,1782127840000,-500.0,0.0001233,2]
[426035627,1782127840000,-500.0,0.0001233,2]
[426035653,1782127840000,-500.0,0.0001233,2]
[426035640,1782127840000,-500.0,0.0001233,2]
[426035658,1782127840000,-500.0,0.0001233,2]
[426035644,1782127840000,-500.0,0.0001233,2]
[426035643,1782127840000,-500.0,0.0001233,2]
[426035632,1782127840000,-500.0,0.0001233,2]
[426035629,1782127840000,-500.0,0.0001233,2]
[426035661,1782127840000,-500.0,0.0001233,2]
[426035628,1782127840000,-500.0,0.0001233,2]
[426035630,1782127840000,-500.0,0.0001233,2]
[426035635,1782127840000,-500.0,0.0001233,2]
[426035634,1782127840000,-500.0,0.0001233,2]
[426035636,1782127840000,-500.0,0.0001233,2]
[426035637,1782127840000,-500.0,0.0001233,2]
[426035639,1782127840000,-500.0,0.0001233,2]
[426035641,1782127840000,-500.0,0.0001233,2]
[426035638,1782127840000,-500.0,0.0001233,2]
[426035659,1782127840000,-500.0,0.0001233,2]
[426035642,1782127840000,-500.0,0.0001233,2]
[426035703,1782127841000,-500.0,0.0001233,2]
[426035699,1782127841000,-500.0,0.0001233,2]
[426035700,1782127841000,-500.0,0.0001233,2]
[426035698,1782127841000,-500.0,0.0001233,2]
[426035697,1782127841000,-500.0,0.0001233,2]
[426035702,1782127841000,-500.0,0.0001233,2]
[426035695,1782127841000,-500.0,0.0001233,2]
[426035696,1782127841000,-500.0,0.0001233,2]
[426035706,1782127841000,-441.218911,0.0001233,2]
[426035692,1782127841000,-500.0,0.0001233,2]
[426035701,1782127841000,-500.0,0.0001233,2]
[426035705,1782127841000,-500.0,0.0001233,2]
[426035715,1782127841000,-500.0,0.00012617,2]
[426035707,1782127841000,-151.0,0.0001233,2]
[426035708,1782127841000,-500.0,0.00012343,2]
[426035709,1782127841000,-500.0,0.0001242,2]
[426035710,1782127841000,-166.66,0.00012479,2]
[426035712,1782127841000,-330.1,0.00012537,2]
[426035711,1782127841000,-2000.0,0.00012506,2]
[426035714,1782127841000,-246.72502933,0.00012609,2]
[426035713,1782127841000,-167.12,0.00012553,2]
[426035717,1782127841000,-1195.07193787,0.000129,2]
[426035716,1782127841000,-164.93,0.00012752,2]
[426035718,1782127841000,-167.12,0.00013071,2]
[426035690,1782127841000,-500.0,0.0001233,2]
[426035704,1782127841000,-500.0,0.0001233,2]
[426035691,1782127841000,-500.0,0.0001233,2]
[426035677,1782127841000,-500.0,0.0001233,2]
[426035688,1782127841000,-500.0,0.0001233,2]
[426035670,1782127841000,-500.0,0.0001233,2]
[426035665,1782127841000,-500.0,0.0001233,2]
[426035664,1782127841000,-500.0,0.0001233,2]
[426035666,1782127841000,-500.0,0.0001233,2]
[426035669,1782127841000,-500.0,0.0001233,2]
[426035667,1782127841000,-500.0,0.0001233,2]
[426035663,1782127841000,-500.0,0.0001233,2]
[426035668,1782127841000,-500.0,0.0001233,2]
[426035671,1782127841000,-500.0,0.0001233,2]
[426035672,1782127841000,-500.0,0.0001233,2]
[426035674,1782127841000,-500.0,0.0001233,2]
[426035675,1782127841000,-500.0,0.0001233,2]
[426035719,1782127841000,-255.0,0.00013139,2]
[426035680,1782127841000,-500.0,0.0001233,2]
[426035676,1782127841000,-500.0,0.0001233,2]
[426035673,1782127841000,-500.0,0.0001233,2]
[426035678,1782127841000,-500.0,0.0001233,2]
[426035679,1782127841000,-500.0,0.0001233,2]
[426035681,1782127841000,-500.0,0.0001233,2]
[426035682,1782127841000,-500.0,0.0001233,2]
[426035684,1782127841000,-500.0,0.0001233,2]
[426035683,1782127841000,-500.0,0.0001233,2]
[426035685,1782127841000,-500.0,0.0001233,2]
[426035687,1782127841000,-500.0,0.0001233,2]
[426035686,1782127841000,-500.0,0.0001233,2]
[426035694,1782127841000,-500.0,0.0001233,2]
[426035693,1782127841000,-500.0,0.0001233,2]
[426035689,1782127841000,-500.0,0.0001233,2]
[426035725,1782127841000,-500.0,0.00013698,2]
[426035720,1782127841000,-167.12,0.00013589,2]
[426035728,1782127841000,-500.0,0.00013698,2]
[426035755,1782127841000,-330.1,0.0001393,2]
[426035757,1782127841000,-164.93,0.00014027,2]
[426035760,1782127841000,-167.12,0.00014625,2]
[426035756,1782127841000,-250.0,0.00014,2]
[426035765,1782127841000,-213.0,0.0001507,2]
[426035762,1782127841000,-150.0,0.00015068,2]
[426035759,1782127841000,-433.0,0.0001432,2]
[426035758,1782127841000,-167.12,0.00014107,2]
[426035764,1782127841000,-150.0,0.0001507,2]
[426035761,1782127841000,-837.26431755,0.00015008,2]
[426035724,1782127841000,-500.0,0.00013698,2]
[426035766,1782127841000,-302.46,0.0001507,2]
[426035753,1782127841000,-627.14,0.000137,2]
[426035767,1782127841000,-349.01334318,0.0001507,2]
[426035770,1782127841000,-151.29119052,0.000153,2]
[426035769,1782127841000,-180.41387865,0.000153,2]
[426035772,1782127841000,-250.0,0.00015323,2]
[426035768,1782127841000,-235.63,0.00015217,2]
[426035777,1782127841000,-300.0,0.00016,2]
[426035773,1782127841000,-330.1,0.00015323,2]
[426035776,1782127841000,-1500.0,0.00015791,2]
[426035775,1782127841000,-736.0,0.0001561,2]
[426035774,1782127841000,-799.03,0.00015602,2]
[426035778,1782127841000,-3564.15,0.00016116,2]
[426035779,1782127841000,-1997.01,0.00016116,2]
[426035780,1782127841000,-627.14,0.000163,2]
[426035771,1782127841000,-164.93,0.00015302,2]
[426035754,1782127841000,-2117.15,0.000139,2]
[426035763,1782127841000,-173.283087,0.00015068,2]
[426035749,1782127841000,-200.0,0.00013699,2]
[426035751,1782127841000,-500.0,0.00013699,3]
[426035726,1782127841000,-500.0,0.00013698,2]
[426035729,1782127841000,-500.0,0.00013698,2]
[426035721,1782127841000,-215.25066033,0.00013598,2]
[426035722,1782127841000,-235.63,0.00013695,2]
[426035723,1782127841000,-857.8177528,0.00013698,2]
[426035730,1782127841000,-500.0,0.00013698,2]
[426035732,1782127841000,-500.0,0.00013698,2]
[426035731,1782127841000,-500.0,0.00013698,2]
[426035733,1782127841000,-500.0,0.00013698,2]
[426035734,1782127841000,-171.95525489,0.00013698,2]
[426035736,1782127841000,-500.0,0.00013698,2]
[426035735,1782127841000,-500.0,0.00013698,2]
[426035727,1782127841000,-500.0,0.00013698,2]
[426035739,1782127841000,-538.9571023,0.00013698,2]
[426035738,1782127841000,-500.0,0.00013698,2]
[426035747,1782127841000,-500.0,0.00013698,2]
[426035748,1782127841000,-500.0,0.00013698,2]
[426035746,1782127841000,-502.56753259,0.00013698,2]
[426035745,1782127841000,-500.0,0.00013698,2]
[426035743,1782127841000,-500.0,0.00013698,2]
[426035750,1782127841000,-500.0,0.00013699,3]
[426035752,1782127841000,-189.38596075,0.00013699,3]
[426035741,1782127841000,-645.2249192,0.00013698,2]
[426035742,1782127841000,-209.65886163,0.00013698,2]
[426035740,1782127841000,-500.0,0.00013698,2]
[426035744,1782127841000,-500.0,0.00013698,2]
[426035737,1782127841000,-500.0,0.00013698,2]
[426035825,1782127842000,-500.0,0.00016438,2]
[426035814,1782127842000,-500.0,0.00016438,2]
[426035816,1782127842000,-500.0,0.00016438,2]
[426035817,1782127842000,-496.79424449,0.00016438,2]
[426035810,1782127842000,-500.0,0.00016438,2]
[426035813,1782127842000,-500.0,0.00016438,2]
[426035812,1782127842000,-500.0,0.00016438,2]
[426035811,1782127842000,-500.0,0.00016438,2]
[426035807,1782127842000,-500.0,0.00016438,2]
[426035824,1782127842000,-500.0,0.00016438,2]
[426035815,1782127842000,-500.0,0.00016438,2]
[426035819,1782127842000,-500.0,0.00016438,2]
[426035827,1782127842000,-500.0,0.00016438,2]
[426035821,1782127842000,-500.0,0.00016438,2]
[426035820,1782127842000,-500.0,0.00016438,2]
[426035822,1782127842000,-500.0,0.00016438,2]
[426035823,1782127842000,-500.0,0.00016438,2]
[426035826,1782127842000,-500.0,0.00016438,2]
[426035829,1782127842000,-500.0,0.00016438,2]
[426035828,1782127842000,-500.0,0.00016438,2]
[426035831,1782127842000,-500.0,0.00016438,2]
[426035830,1782127842000,-500.0,0.00016438,2]
[426035834,1782127842000,-500.0,0.00016438,2]
[426035835,1782127842000,-500.0,0.00016438,2]
[426035808,1782127842000,-500.0,0.00016438,2]
[426035804,1782127842000,-500.0,0.00016438,2]
[426035818,1782127842000,-500.0,0.00016438,2]
[426035809,1782127842000,-500.0,0.00016438,2]
[426035836,1782127842000,-500.0,0.00016438,2]
[426035781,1782127842000,-1555.5,0.00016339,2]
[426035782,1782127842000,-436.1,0.00016438,2]
[426035786,1782127842000,-500.0,0.00016438,2]
[426035785,1782127842000,-500.0,0.00016438,2]
[426035784,1782127842000,-500.0,0.00016438,2]
[426035783,1782127842000,-500.0,0.00016438,2]
[426035787,1782127842000,-500.0,0.00016438,2]
[426035788,1782127842000,-500.0,0.00016438,2]
[426035789,1782127842000,-500.0,0.00016438,2]
[426035790,1782127842000,-500.0,0.00016438,2]
[426035792,1782127842000,-500.0,0.00016438,2]
[426035794,1782127842000,-500.0,0.00016438,2]
[426035793,1782127842000,-500.0,0.00016438,2]
[426035791,1782127842000,-500.0,0.00016438,2]
[426035801,1782127842000,-500.0,0.00016438,2]
[426035796,1782127842000,-500.0,0.00016438,2]
[426035797,1782127842000,-500.0,0.00016438,2]
[426035800,1782127842000,-500.0,0.00016438,2]
[426035798,1782127842000,-500.0,0.00016438,2]
[426035799,1782127842000,-500.0,0.00016438,2]
[426035795,1782127842000,-500.0,0.00016438,2]
[426035802,1782127842000,-500.0,0.00016438,2]
[426035803,1782127842000,-500.0,0.00016438,2]
[426035805,1782127842000,-500.0,0.00016438,2]
[426035806,1782127842000,-500.0,0.00016438,2]
[426035833,1782127842000,-500.0,0.00016438,2]
[426035832,1782127842000,-500.0,0.00016438,2]
[426035837,1782127842000,-500.0,0.00016438,2]
[426035869,1782127842000,-4282.80432586,0.00017659,2]
[426035866,1782127842000,-614.95628549,0.00017659,2]
[426035870,1782127842000,-5794.7769,0.00017659,2]
[426035872,1782127842000,-9999.99,0.00017728,2]
[426035874,1782127842000,-837.26431755,0.00017786,2]
[426035889,1782127842000,-232.05817309,0.000183,2]
[426035884,1782127842000,-500.0,0.00018242,2]
[426035877,1782127842000,-350.0,0.00018,2]
[426035892,1782127842000,-1119.41442965,0.000183,2]
[426035886,1782127842000,-235.63,0.0001826,2]
[426035873,1782127842000,-5168.91,0.00017728,2]
[426035876,1782127842000,-1734.62772924,0.00017983,2]
[426035882,1782127842000,-500.0,0.00018219,2]
[426035879,1782127842000,-200.0,0.0001804,2]
[426035896,1782127842000,-569.04972633,0.000183,2]
[426035894,1782127842000,-204.4,0.000183,2]
[426035903,1782127842000,-204.4,0.000185,2]
[426035902,1782127842000,-1119.41442965,0.000185,2]
[426035895,1782127842000,-10124.19515023,0.000183,2]
[426035898,1782127842000,-231.4957237,0.000184,2]
[426035901,1782127842000,-436.1,0.0001841,2]
[426035900,1782127842000,-231.4957237,0.000184,2]
[426035897,1782127842000,-5969.75,0.00018356,2]
[426035899,1782127842000,-231.4957237,0.000184,2]
[426035904,1782127842000,-10124.19515023,0.000185,2]
[426035868,1782127842000,-2862.95156935,0.00017659,2]
[426035865,1782127842000,-1672.7364795,0.00017435,2]
[426035875,1782127842000,-164.93,0.00017853,2]
[426035864,1782127842000,-1252.0,0.0001702,2]
[426035838,1782127842000,-500.0,0.00016438,2]
[426035867,1782127842000,-1622.87936696,0.00017659,2]
[426035839,1782127842000,-500.0,0.00016438,2]
[426035847,1782127842000,-210.75491605,0.00016438,2]
[426035846,1782127842000,-500.0,0.00016438,2]